Cogmind - Beta 13 @@@ ROGUE MODE // 2024.03.31 @ 12:54:52 Player: weedlord420 Result: Smashed by cave-in Performance ------------- Evolutions (0) 0 Regions Visited (2) 400 Robots Destroyed (22) 110 Value Destroyed (651) 651 Prototype IDs (0) 0 Alien Tech Used (0) 0 Bonus (0) 0 TOTAL SCORE: 1161 Bonus ------- None Cogmind --------- Core Integrity 0/250 Matter 257/300 Energy 11/100 System Corruption 15% Temperature Cool (0) Movement Core (100) Ox1 Location -10/Subcaves Parts ------- > --- POWER (1) -------- (None) > --- PROPULSION (2) --- (None) > --- UTILITY (2) ------ ECM Suite > --- WEAPON (2) ------- Particle Cannon > --- INVENTORY (5) ---- Subdweller Power Source Signal Interpreter Seismic Detector Beam Cannon Peak State ------------ > --- POWER ------------ Ion Engine > --- PROPULSION ------- Aluminum Leg Aluminum Leg > --- UTILITY ---------- Scrap Shield > --- WEAPON ----------- Particle Cannon Rocket Launcher > --- INVENTORY -------- Signal Interpreter Seismic Detector Seismic Detector ECM Suite Beam Cannon [Rating: 11] Favorites ----------- Power Ion Engine Engine Ion Engine Propulsion Aluminum Leg Leg Aluminum Leg Utility Structural Scanner Device Structural Scanner Protection Scrap Shield Weapon Light Assault Rifle Energy Cannon Particle Cannon Ballistic Gun Light Assault Rifle Launcher Rocket Launcher Slashing Weapon Mining Claw Build | -11 -10 -10 ------- Run | Yrd Mat Sub Slots Evolved . | . . . Power . | . . . Propulsion . | . . . Utility . | . . . Weapon . | . . . Parts Attached 28 | 6 19 3 Power 4 | 2 2 . Engine 4 | 2 2 . Core . | . . . Reactor . | . . . Propulsion 4 | 2 2 . Treads . | . . . Leg 4 | 2 2 . Wheel . | . . . Hover . | . . . Flight . | . . . Utility 8 | . 5 3 Device 7 | . 5 2 Storage . | . . . Processor . | . . . Hackware . | . . . Protection 1 | . . 1 Artifact . | . . . Weapon 12 | 2 10 . Energy Gun . | . . . Energy Cannon 2 | . 2 . Ballistic Gun 6 | 2 4 . Ballistic Cannon . | . . . Launcher 3 | . 3 . Special Weapon . | . . . Impact Weapon . | . . . Slashing Weapon 1 | . 1 . Piercing Weapon . | . . . Special Melee Weapon . | . . . Unidentified Prototypes . | . . . Parts Lost 8 | . 2 6 Power 2 | . 1 1 Propulsion 2 | . . 2 Utility 3 | . 1 2 Weapon 1 | . . 1 Highest Loss Streak 3 | . 2 3 To Critical Strikes . | . . . Average Slot Usage (%) 91 | . 93 79 Engine 13 | . 13 10 Leg 27 | . 28 24 Device 20 | . 22 7 Protection 1 | . . 8 Energy Cannon 3 | . 1 14 Ballistic Gun 15 | . 18 . Launcher 7 | . 6 14 Naked Turns . | . . . Heaviest Build 31 | 8 15 31 Greatest Support 20 | 20 20 20 Greatest Overweight (x) 1 | . . 1 Average Overweight (x) . | . . . Largest Inventory Capacity 5 | 5 5 5 Average Capacity 5 | 5 5 5 Most Carried 5 | 3 5 5 Average Carried 3 | . 3 4 Final Capacity 5 | 5 5 5 Final Carried 5 | . 5 4 Class Distribution -------------------- 100% | Mutant Dominant Class ---------------- Mutant | -10/Materials Mutant | -10/Subcaves Resources | -11 -10 -10 ----------- Run | Yrd Mat Sub Matter Collected 728 | 284 274 170 Remotely . | . . . Salvage Created 678 | 50 416 212 Parts 53 | 4 31 18 Haulers Intercepted . | . . . Recyclers Shooed . | . . . Parts Field Recycled . | . . . Retrieved Matter . | . . . Parts Self-Destructed . | . . . Prevented . | . . . Kills | -11 -10 -10 ------- Run | Yrd Mat Sub Combat Hostiles Destroyed 21 | 1 13 7 Guns 10 | 1 9 . Cannons 1 | . . 1 AOE 10 | . 4 6 Classes Destroyed 4 | 1 2 1 Recycler 1 | . 1 . Swarmer 6 | . 6 . Grunt 8 | 1 7 . Subdweller 7 | . . 7 Best Kill Streak 7 | 1 3 7 Combat Bots Only 7 | 1 3 7 Max Kills in Single Turn 4 | 1 3 4 Gunslinging . | . . . Exploded 4 | . 3 4 Melee . | . . . Uniques/NPCs Destroyed . | . . . Combat | -11 -10 -10 -------- Run | Yrd Mat Sub Hostile Shots Fired 83 | 7 52 24 Missed 18 | 3 11 4 Damage Taken 1286 | 46 490 750 Core 289 | 12 122 155 Absorbed by Shields . | . . . Regen/Repaired (Parts) 22 | . 22 . Core Remaining (%) 95 | 95 . . Volleys Fired 58 | 6 48 4 Largest 2 | 2 2 2 Hottest 128 | 40 128 101 Shots Fired 103 | 12 83 8 Gun 74 | 12 62 . Cannon 15 | . 11 4 Launcher 14 | . 10 4 Special . | . . . Kinetic 74 | 12 62 . Thermal 15 | . 11 4 Explosive 14 | . 10 4 Electromagnetic . | . . . Robot Hit Streak 18 | 2 18 7 Robot Miss Streak 3 | 2 3 . Penetration Max . | . . . Secondary Targets . | . . . Shots Hit Robots 52 | 5 40 7 Core Hits 38 | 2 23 13 Critical Kills . | . . . Critical Parts Destroyed 2 | . 2 . Critical Strikes 2 | . 2 . Destroy 2 | . 2 . Melee Attacks 2 | . 2 . Impact . | . . . Slashing 2 | . 2 . Piercing . | . . . Sneak Attacks . | . . . Combat Hostiles . | . . . Follow-up Attacks . | . . . Damage Inflicted 2062 | 67 791 1204 Guns 460 | 67 393 . Cannons 62 | . . 62 Explosions 1534 | . 392 1142 Melee . | . . . Ramming 6 | . 6 . Kinetic 460 | 67 393 . Thermal 62 | . . 62 Explosive 1534 | . 392 1142 Electromagnetic . | . . . Impact . | . . . Slashing . | . . . Piercing . | . . . Highest Corruption 5 | . 5 5 Average Corruption 4 | . 4 5 Corruption Purged . | . . . Corruption Blocked . | . . . Effects 20 | . 14 6 Message Errors 4 | . 2 2 Matter Fused 8 | . 5 3 Heat Flow Errors 1 | . 1 . Parts Fused 1 | . 1 . Data Loss (minor) 2 | . 1 1 Data Loss (major) 2 | . 2 . Misfires 1 | . 1 . Alerts 1 | . 1 . Overload Shots . | . . . Overflow Damage 46 | . 14 32 Projectiles . | . . . Explosions 46 | . 14 32 Melee . | . . . Knockbacks . | . . . Impact . | . . . Kinetic . | . . . Secondary . | . . . Self-Inflicted Damage 89 | . 89 . Shots 4 | . 4 . Rammed . | . . . Targets Rammed 5 | . 5 . Kicked 5 | . 5 . Crushed . | . . . Highest Temperature 330 | 6 330 313 Average Temperature 101 | 6 88 189 Received Heat Transfer 561 | 24 153 384 Effects 1 | . 1 . Energy Bleed 1 | . 1 . Siege Activations . | . . . Robots Corrupted . | . . . Combat Hostiles . | . . . Parts Fried . | . . . Impact Corruptions . | . . . Robots Melted . | . . . Combat Hostiles . | . . . Parts Melted . | . . . Heat Transferred 111 | . . 111 Parts Sabotaged . | . . . Parts Stolen . | . . . Parts Stripped . | . . . Power Chain Reactions . | . . . Alert | -11 -10 -10 ------- Run | Yrd Mat Sub Peak Influence 240 | 20 240 . Initial 13 | . 13 . Average 91 | 5 100 . Maximum Alert Level 1 | . 1 . Low Security (%) 83 | 100 82 . Level 1 16 | . 17 . Level 2 . | . . . Level 3 . | . . . Level 4 . | . . . Level 5 . | . . . High Security . | . . . Max Security . | . . . Squads Dispatched 1 | . 1 . Investigation . | . . . Extermination . | . . . Reinforcement 1 | . 1 . Assault . | . . . Garrison . | . . . Intercept . | . . . Searches Triggered . | . . . Construction Impeded . | . . . Haulers Reinforced . | . . . Active Scanning Responses . | . . . Cargo Convoy Interrupts . | . . . Stealth | -11 -10 -10 --------- Run | Yrd Mat Sub Distress Signals 1 | . 1 . Communications Jammed . | . . . Distress Signals . | . . . Times Spotted 33 | 1 22 10 Peak Tracking Total 9 | 1 5 9 Tactical Retreats 1 | . 1 . Traps | -11 -10 -10 ------- Run | Yrd Mat Sub Traps Triggered 3 | . 3 . Indirectly . | . . . Trap Hack Attempts . | . . . Triggered . | . . . Disarmed . | . . . Reprogrammed . | . . . Reused . | . . . Traps Extracted . | . . . Installed . | . . . Triggered . | . . . Machines | -11 -10 -10 ---------- Run | Yrd Mat Sub Machines Disabled 2 | . 2 . Max in Single Turn 1 | . 1 . Machines Repaired . | . . . Machines Dismantled . | . . . Machines Sabotaged . | . . . Overloaded Fab Kills . | . . . Hacking | -11 -10 -10 --------- Run | Yrd Mat Sub Machines Accessed 6 | . 6 . Terminals 4 | . 4 . Fabricators . | . . . Repair Stations 1 | . 1 . Recycling Units 1 | . 1 . Scanalyzers . | . . . Garrison Access . | . . . Total Hacks 12 | . 12 . Successful 11 | . 11 . Failed 1 | . 1 . Catastrophic . | . . . Database Lockouts . | . . . Manual . | . . . Terminals 9 | . 9 . Fabricators . | . . . Repair Stations 2 | . 2 . Recycling Units 1 | . 1 . Scanalyzers . | . . . Garrison Access . | . . . Terminal Hacks 8 | . 8 . Record 5 | . 5 . Emergency Access Points 1 | . 1 . Alert Level 1 | . 1 . Recall Reinforcements 1 | . 1 . Fabricator Hacks . | . . . Repair Station Hacks 2 | . 2 . Scan Component 1 | . 1 . Repair 1 | . 1 . Recycling Unit Hacks 1 | . 1 . Retrieve Matter 1 | . 1 . Scanalyzer . | . . . Garrison Access Hacks . | . . . Unauthorized Hacks . | . . . Terminals . | . . . Fabricators . | . . . Repair Stations . | . . . Recycling Units . | . . . Scanalyzers . | . . . Garrison Access . | . . . Data Cores Recovered . | . . . Used . | . . . Hacking Detections 4 | . 4 . Full Trace Events 1 | . 1 . Feedback Events . | . . . Feedback Blocked . | . . . Robot Schematics Acquired . | . . . Robots Built . | . . . Authchips . | . . . Time . | . . . Total Robot Build Rating . | . . . Part Schematics Acquired . | . . . Parts Built . | . . . Authchips . | . . . Time . | . . . Total Part Build Rating . | . . . Parts Repaired 1 | . 1 . Time 26 | . 26 . Parts Recycled . | . . . Recycled Matter . | . . . Retrieved Matter . | . . . Retrieved Components . | . . . Parts Scanalyzed . | . . . Part Schematics Acquired . | . . . Parts Damaged . | . . . Bothacking | -11 -10 -10 ------------ Run | Yrd Mat Sub Used RIF Installer . | . . . Robots Hacked . | . . . Non-combat . | . . . Combat . | . . . Robot Hacks Applied . | . . . Relay Couplers Released . | . . . Fabnet Peak Effective % . | . . . Robots Rewired . | . . . Allies Hacked . | . . . Hacks Repelled . | . . . Allies | -11 -10 -10 -------- Run | Yrd Mat Sub Total Allies . | . . . Largest Group . | . . . Highest-Rated Group . | . . . Highest-Rated Ally . | . . . Total Orders . | . . . Ally Attacks . | . . . Total Damage . | . . . Kills . | . . . Allies Corrupted . | . . . Allies Melted . | . . . Intel | -11 -10 -10 ------- Run | Yrd Mat Sub Robot Analysis Total . | . . . Derelict Logs Recovered . | . . . Drone Launches . | . . . Drone Recoveries . | . . . Exploration | -11 -10 -10 ------------- Run | Yrd Mat Sub Turns Passed 1469 | 126 1137 206 Spaces Moved 956 | 97 752 107 Core 28 | 28 . . Treads . | . . . Legs 928 | 69 752 107 Wheels . | . . . Hover . | . . . Flight . | . . . Fastest Speed 50 | 50 120 120 Average Speed 123 | 99 120 168 Slowest Speed 190 | 120 120 190 Overloaded Moves . | . . . Propulsion Burnouts . | . . . Robots Hopped . | . . . Cave-ins Triggered 1 | . . 1 Exploration Rate (%) 35 | 7 89 10 Regions Visited 2 Branch Regions 1 Pre-discovered Areas . | . . . Known Exits Taken . | . . . Unknown Exits Taken 2 | 1 1 . Scrap Searched . | . . . Spaces Dug 10 | . 10 . Terrain Destroyed 109 | . 96 13 Melee 1 | . 1 . Projectile . | . . . AOE 108 | . 95 13 Terrain Rammed . | . . . Walls Destroyed . | . . . Machines Disabled . | . . . Actions | -11 -10 -10 --------- Run | Yrd Mat Sub Total 1147 | 115 906 126 Wait 60 | . 52 8 Move 954 | 96 751 107 Hop . | . . . Pick Up 25 | 6 18 1 Fast Attach 3 | . 2 1 Attach 12 | 5 5 2 Detach 2 | . . 2 Swap 13 | 1 12 . Drop 13 | 1 11 1 Fire 58 | 6 48 4 Melee 2 | . 2 . Ram . | . . . Kick 5 | . 5 . Crush . | . . . Escape Stasis . | . . . Rewire . | . . . Trap . | . . . Miscellaneous . | . . . Route ------- -11/Scrapyard -10/Materials (discovered 4 exits: [*Mat x3] / [*Sub]) -10/Subcaves History --------- Turn | Location | Event 2 | -11/Scrapyard | Met Revision 17 75 | -11/Scrapyard | Discovered new exit (range 8) 127 | -11/Scrapyard | Entered Materials 324 | -10/Materials | Build established: Mutant 397 | -10/Materials | Discovered new exit (range 9) 538 | -10/Materials | Discovered new exit (range 6) 630 | -10/Materials | Repaired Lgt. Assault Rifle 876 | -10/Materials | Discovered new exit (range 3) 1062 | -10/Materials | Discovered new exit (range 16) 1174 | -10/Materials | Core integrity fell below 50% 1264 | -10/Materials | Entered Subcaves 1410 | -10/Subcaves | Ambushed by swarm of Subdwellers 1410 | -10/Subcaves | Ambushed by Subdwellers from Twisted Machinery 1410 | -10/Subcaves | Ambushed by Subdwellers from Twisted Machinery 1410 | -10/Subcaves | Ambushed by Subdwellers from Twisted Machinery 1410 | -10/Subcaves | Ambushed by Subdwellers from Twisted Machinery 1410 | -10/Subcaves | Ambushed by Subdwellers from Twisted Machinery 1410 | -10/Subcaves | Ambushed by Subdwellers from Twisted Machinery 1419 | -10/Subcaves | Core integrity fell below 20% 1440 | -10/Subcaves | Destroyed 7 combat bots 1453 | -10/Subcaves | Lost 3 parts (1p1n1u) 1471 | -10/Subcaves | Crushed by falling debris 1471 | -10/Subcaves | Smashed by cave-in Last Messages --------------- The unstable cave ceiling collapses. Acquired 42 matter. Subatomizers dissect the Sub. Power Source. Acquired 24 matter. Acquired Sub. Power Source. To regain energy, simply wait via the mouse wheel, '.', or KP5. Also make sure your per-turn energy generation is a net positive, and consider deactivating power-draining parts if not. The unstable cave ceiling collapses. Crushed by falling debris. [Achievement: Unlikely Earthworm] Aluminum Leg destroyed. System corrupted by crushing effect (+4). Seismic Detector destroyed. System corrupted by crushing effect (+4). Rocket Launcher destroyed. System corrupted by crushing effect (+2). [Achievement: First Step to Greatness] Map ----- +----------------------------------------------------+ | ?????????????????????????????????????????????????? | | ?????????????????????????????????????????????????? | | ?????????????????????????????????????????????????? | | ?????????????????????????????????????????????????? | | ?????????????????????????????????????????????????? | | ?????????????????????????????????????????????????? | | ?????????????????????????????????????????????????? | | ?????????????????????????????????????????????????? | | ???????????????????## ???????? ?????????????????? | | ???????????????????# ???????? ????????????????? | | ??????????????????## ???###? #??"?????????????? | | ??????????????????# ??? ## ## ?????????????? | | ?????????????????? ??? ?????????????? | | ??????????????????? ??? ??????????????? | | ???????????????????? ??? ??? ????????????? | | ???????????????????? ##? ?? ???????????? | | ????????????????????? ## #?? ???????????? | | ?????????????????????# ## #??????????? | | ?????????????????????# ???????????? | | ????????????????????## #??????????????? | | ????????????????????# &! #???????????????? | | ????????????????????# & ! #???????????????? | | ?????????????????#### ! ## #????????????????? | | ????????????###### # #???????????????????? | | ???????????## ## && !!g# #???????????????????? | | ??????????## ## & &*g @ ##???????????????????? | | ??????????# ## *[hg ##??????????????????? | | ??????????# ]&= #??????????????????? | | ??????????# ??????????????? | | ??????????# ?????????????? | | ?????????## # ????????????? | | ?????????# ## ### ???????????? | | ?????????# ## #??##??????????????? | | ?????????# ## ##??????????????????? | | ?????????## # ##???????????????????? | | ?????????## ### ## #????????????????????? | | ####????## ##?# #? #???????????????????? | | ###### #??# #?# #??????????????????? | | ## #??# #?? #??????????????????? | | ## #####?? ##??# ###??????????????????? | | ## ###??????? ????#?????????????????????? | | #?????????# ??????????????????????????? | | ### #####?????? ??????????????????????????? | | ##?## ###???? ???????????????????????????? | | #### #????????????????????????????????? | | #????????????????????????????????? | | #????????????????????????????????? | | # ##????????????????????????????????? | | #### ## #?????????????????????????????????? | | # ## #?????????????????????????????????? | +----------------------------------------------------+ Best States ------------- Heat Dissipation 25 Energy Generation 10 Energy Capacity 250 Matter Stores 300 Matter Capacity 300 Sight Range 16 Robot Scan Range 14 Terrain Scan Density 10 ECM Strength 1 Armor Coverage 800 Evasion (%) 55 Item Schematics ----------------- None Robot Schematics ------------------ None Fabricated ------------ Nothing Alien Tech Used ----------------- None Achievements -------------- First Step to Greatness Unlikely Earthworm Challenges ------------ None Game ------ Seed FortressRagnarokBroadsword Manual? 0 Play Time 00:25:31 Cumulative 1.1 hours Start 2024.03.31 @ 12:28:14 End 2024.03.31 @ 12:54:52 Sessions 1 Manual Loads 0 Difficulty Rogue Special Mode None Game No. 2 Rogue 1 Adventurer 1 Explorer 0 Win Type - Total 0 Types 0/0/0/0/0/0/0/0/0 Lore% 1 Gallery% 4 Achievement% 5 Wizard Run 0 Options --------- Layout 1 ASCII 0 Keyboard 0 Movement Mouse Keybinds 0 Fullscreen 2 Font 24/Terminus Map View 50x35 Zoom Use 0% Tactical HUD 0 Map Filters NONE Filters NONE Steam 1 RUN: 4066d384-e549-4c2e-a6d7-325bc63c32a2